[Event "Riga Chess Open 2020"]
[Site "Riga"]
[Date "2020.08.26"]
[Round "4.4"]
[White "Raag, Ardi"]
[Black "Milovs, Daniels"]
[Result "1-0"]
[ECO "C02"]
[WhiteElo "1724"]
[BlackElo "1592"]
[Annotator "NA"]
[PlyCount "65"]
[EventDate "2020.08.29"]
[EventType "swiss"]
[EventCountry "LAT"]
[SourceTitle "playchess.com"]
[Source "ChessBase"]
[SourceQuality "1"]
[TimeControl "5400+30"]

1. e4 {[%emt 0:00:00]} e6 {[%emt 0:10:59]} 2. d4 {[%emt 0:00:00]} d5 {[%emt 0:00:00]} 3. e5 {[%emt 0:00:00]} c5 {[%emt 0:00:02]} 4. c3 {[%emt 0:00:05]} Nc6 {[%emt 0:00:01]} 5. Nf3 {[%emt 0:00:38]} Qb6 {[%emt 0:00:01]} 6. Be2 {[%emt 0:00:39]} cxd4 {[%emt 0:00:27]} 7. cxd4 {[%emt 0:00:23]} Nge7 {[%emt 0:00:01]} 8. Na3 {[%emt 0:01:03]} Nf5 {[%emt 0:00:03]} 9. Nc2 {[%emt 0:00:12]} Bb4+ {[%emt 0:00:01]} 10. Kf1 {[%emt 0:00:58]} Be7 {[%emt 0:00:02]} 11. b3 {[%emt 0:03:53]} Bd7 {[%emt 0:01:46]} 12. g3 {[%emt 0:07:18]} Rc8 {[%emt 0:10:56]} 13. Bd3 {[%emt 0:07:43]} Ncxd4 {[%emt 0:23:19]} 14. Nfxd4 {[%emt 0:00:20]} Nxd4 {[%emt 0:00:03]} 15. Be3 {[%emt 0:00:16]} Bc5 {[%emt 0:00:03]} 16. b4 {[%emt 0:00:10]} Bxb4 {[%emt 0:05:58]} 17. Bxd4 {[%emt 0:00:27]} Bc5 {[%emt 0:00:20]} 18. Bxc5 {[%emt 0:06:33]} Rxc5 {[%emt 0:01:22]} 19. Kg2 {[%emt 0:02:19]} O-O {[%emt 0:03:41]} 20. Qe2 {[%emt 0:05:00]} f6 {[%emt 0:02:48]} 21. exf6 {[%emt 0:08:40]} Rxf6 {[%emt 0:00:16]} 22. Rhc1 {[%emt 0:09:03]} e5 {[%emt 0:02:57]} 23. Qd2 {[%emt 0:05:32]} Rc8 {[%emt 0:23:51]} 24. Ne3 {[%emt 0:08:16]} Rcf8 {[%emt 0:00:21]} 25. Rf1 {[%emt 0:01:57]} Qe6 {[%emt 0:02:37]} 26. Kg1 {[%emt 0:06:31]} Qh3 {[%emt 0:02:35]} 27. Nxd5 {[%emt 0:01:14]} Rh6 {[%emt 0:04:27]} 28. f3 {[%emt 0:00:09]} Qh5 {[%emt 0:02:42]} 29. Be4 {[%emt 0:01:06]} Kh8 {[%emt 0:00:38]} 30. Rac1 {[%emt 0:02:42]} Bf5 {[%emt 0:00:46]} 31. g4 {[%emt 0:02:45]} Qg6 {[%emt 0:00:39]} 32. Bxf5 {[%emt 0:00:16]} Rxf5 {[%emt 0:00:02]} 33. Ne7 {[%emt 0:00:16]} 1-0

[Event "Riga Chess Open 2020"]
[Site "Riga"]
[Date "2020.08.27"]
[Round "5.1"]
[White "Stabulnieks, Klavs"]
[Black "Krivonosov, Oleg"]
[Result "0-1"]
[ECO "D31"]
[WhiteElo "2214"]
[BlackElo "2381"]
[Annotator "ChessBase"]
[PlyCount "78"]
[EventDate "2020.08.29"]
[EventType "swiss"]
[EventCountry "LAT"]
[SourceTitle "playchess.com"]
[Source "ChessBase"]
[SourceQuality "1"]
[TimeControl "5400+30"]

1. d4 {[%emt 0:00:00]} d5 {[%emt 0:00:00]} 2. c4 {[%emt 0:00:00]} e6 {[%emt 0:00:00]} 3. Nc3 {[%emt 0:00:00]} Be7 {[%emt 0:00:00]} 4. cxd5 {[%emt 0:00:00]} exd5 {[%emt 0:00:00]} 5. Bf4 {[%emt 0:00:00]} c6 {[%emt 0:00:07]} 6. e3 {[%emt 0:00:08]} Bd6 {[%emt 0:00:23]} 7. Bg3 {[%emt 0:00:38]} Ne7 {[%emt 0:04:09]} 8. Bd3 {[%emt 0:00:16]} Bf5 {[%emt 0:01:54]} 9. Nf3 {[%emt 0:04:21]} O-O {[%emt 0:01:31]} 10. Qc2 {[%emt 0:04:13]} Bxd3 {[%emt 0:03:08]} 11. Qxd3 {[%emt 0:00:05]} Na6 {[%emt 0:03:42]} 12. a3 {[%emt 0:02:58]} Nc7 {[%emt 0:05:43]} 13. O-O {[%emt 0:01:49]} Bxg3 {[%emt 0:01:07]} 14. hxg3 {[%emt 0:00:05]} Nc8 {[%emt 0:00:33]} 15. Rfc1 {[%emt 0:06:24]} Nd6 {[%emt 0:00:45]} 16. Na4 {[%emt 0:00:51]} Qe7 {[%emt 0:02:21]} 17. Nd2 {[%emt 0:03:55]} Ne6 {[%emt 0:02:10]} 18. Nc5 {[%emt 0:06:39]} Rae8 {[%emt 0:02:55]} 19. b4 {[%emt 0:02:12]} Ng5 {[%emt 0:04:42]} 20. Ra2 {[%emt 0:04:35]} h5 {[%emt 0:06:07]} 21. a4 {[%emt 0:02:25]} a6 {[%emt 0:00:13]} 22. Qe2 {[%emt 0:04:53]} g6 {[%emt 0:01:19]} 23. Nf3 {[%emt 0:01:19]} Nxf3+ {[%emt 0:02:09]} 24. Qxf3 {[%emt 0:00:43]} Kg7 {[%emt 0:02:04]} 25. Nd3 {[%emt 0:06:07]} Rh8 {[%emt 0:01:41]} 26. Nf4 {[%emt 0:02:14]} f6 {[%emt 0:07:53]} 27. Rac2 {[%emt 0:05:08]} Qf7 {[%emt 0:00:43]} 28. Nd3 {[%emt 0:04:18]} g5 {[%emt 0:01:18]} 29. Rc5 {[%emt 0:03:54]} Qg6 {[%emt 0:01:41]} 30. Qd1 {[%emt 0:07:28]} h4 {[%emt 0:03:10]} 31. g4 {[%emt 0:10:48]} h3 {[%emt 0:00:48]} 32. Nb2 {[%emt 0:04:18]} hxg2 {[%emt 0:06:22]} 33. Qf3 {[%emt 0:00:34]} Ne4 {[%emt 0:01:26]} 34. R5c2 {[%emt 0:00:54]} Rh4 {[%emt 0:01:31]} 35. b5 {[%emt 0:01:40]} axb5 {[%emt 0:01:34]} 36. axb5 {[%emt 0:00:05]} Reh8 {[%emt 0:00:49]} 37. Qf5 {[%emt 0:06:13]} Rh1+ {[%emt 0:01:12]} 38. Kxg2 {[%emt 0:00:05]} R8h2+ {[%emt 0:00:13]} 39. Kf3 {[%emt 0:00:05]} Rxc1 {[%emt 0:01:17]} 0-1

[Event "Riga Chess Open 2020"]
[Site "Riga"]
[Date "2020.08.27"]
[Round "5.2"]
[White "Katishonok, Nikolaj"]
[Black "Raag, Ardi"]
[Result "1/2-1/2"]
[ECO "A23"]
[WhiteElo "2118"]
[BlackElo "1724"]
[Annotator "ChessBase"]
[PlyCount "66"]
[EventDate "2020.08.29"]
[EventType "swiss"]
[EventCountry "LAT"]
[SourceTitle "playchess.com"]
[Source "ChessBase"]
[SourceQuality "1"]
[TimeControl "5400+30"]

1. c4 {[%emt 0:00:00]} e5 {[%emt 0:00:00]} 2. Nc3 {[%emt 0:00:00]} Nf6 {[%emt 0:00:00]} 3. g3 {[%emt 0:02:09]} c6 {[%emt 0:00:06]} 4. Nf3 {[%emt 0:03:12]} e4 {[%emt 0:00:16]} 5. Nd4 {[%emt 0:00:17]} d5 {[%emt 0:01:17]} 6. cxd5 {[%emt 0:00:17]} cxd5 {[%emt 0:00:10]} 7. d3 {[%emt 0:00:43]} Bc5 {[%emt 0:01:56]} 8. Nb3 {[%emt 0:03:35]} Bb4 {[%emt 0:00:47]} 9. a3 {[%emt 0:01:42]} Bxc3+ {[%emt 0:00:50]} 10. bxc3 {[%emt 0:00:07]} O-O {[%emt 0:03:15]} 11. Bg2 {[%emt 0:00:26]} Nc6 {[%emt 0:01:51]} 12. O-O {[%emt 0:00:18]} Bf5 {[%emt 0:03:21]} 13. Be3 {[%emt 0:10:09]} Ng4 {[%emt 0:13:29]} 14. Bc5 {[%emt 0:06:41]} Re8 {[%emt 0:00:35]} 15. dxe4 {[%emt 0:00:45]} dxe4 {[%emt 0:01:56]} 16. Qxd8 {[%emt 0:02:30]} Raxd8 {[%emt 0:01:28]} 17. Rfd1 {[%emt 0:00:10]} b6 {[%emt 0:20:06]} 18. Nd4 {[%emt 0:03:40]} Nxd4 {[%emt 0:03:29]} 19. Bxd4 {[%emt 0:00:08]} f6 {[%emt 0:01:03]} 20. a4 {[%emt 0:06:25]} Ne5 {[%emt 0:08:20]} 21. a5 {[%emt 0:00:06]} Nc6 {[%emt 0:01:53]} 22. axb6 {[%emt 0:04:54]} Nxd4 {[%emt 0:00:06]} 23. Rxd4 {[%emt 0:00:15]} axb6 {[%emt 0:02:58]} 24. Rb1 {[%emt 0:06:41]} Rxd4 {[%emt 0:08:12]} 25. cxd4 {[%emt 0:00:08]} Rb8 {[%emt 0:01:39]} 26. Rb4 {[%emt 0:04:23]} Rc8 {[%emt 0:03:23]} 27. f3 {[%emt 0:06:53]} e3 {[%emt 0:02:06]} 28. g4 {[%emt 0:00:26]} Rc1+ {[%emt 0:01:06]} 29. Bf1 {[%emt 0:00:05]} Bd3 {[%emt 0:03:19]} 30. Kg2 {[%emt 0:00:15]} Rc2 {[%emt 0:01:01]} 31. Rxb6 {[%emt 0:03:38]} Bxe2 {[%emt 0:00:04]} 32. Bxe2 {[%emt 0:00:05]} Rxe2+ {[%emt 0:00:04]} 33. Kg3 {[%emt 0:00:08]} Rd2 {[%emt 0:02:22]} 1/2-1/2

[Event "Riga Chess Open 2020"]
[Site "Riga"]
[Date "2020.08.27"]
[Round "5.3"]
[White "Melderis, Uldis"]
[Black "Jakobsons, Andris"]
[Result "1-0"]
[ECO "E22"]
[WhiteElo "1889"]
[BlackElo "1668"]
[Annotator "NA"]
[PlyCount "68"]
[EventDate "2020.08.29"]
[EventType "swiss"]
[EventCountry "LAT"]
[SourceTitle "playchess.com"]
[Source "ChessBase"]
[SourceQuality "1"]
[TimeControl "5400+30"]

1. d4 {[%emt 0:00:00]} Nf6 {[%emt 0:00:06]} 2. c4 {[%emt 0:00:00]} e6 {[%emt 0:00:06]} 3. Nc3 {[%emt 0:00:00]} Bb4 {[%emt 0:00:18]} 4. Qb3 {[%emt 0:00:00]} Bxc3+ {[%emt 0:03:06]} 5. Qxc3 {[%emt 0:00:22]} O-O {[%emt 0:00:37]} 6. Nf3 {[%emt 0:00:04]} d5 {[%emt 0:03:17]} 7. Bg5 {[%emt 0:00:11]} h6 {[%emt 0:07:13]} 8. Bh4 {[%emt 0:00:22]} c6 {[%emt 0:05:48]} 9. e3 {[%emt 0:01:42]} Nbd7 {[%emt 0:02:23]} 10. Bd3 {[%emt 0:00:11]} Qc7 {[%emt 0:07:05]} 11. Bg3 {[%emt 0:00:55]} Qd8 {[%emt 0:00:31]} 12. Qc2 {[%emt 0:00:21]} Re8 {[%emt 0:06:20]} 13. h3 {[%emt 0:00:16]} a6 {[%emt 0:02:39]} 14. O-O {[%emt 0:00:19]} b5 {[%emt 0:00:40]} 15. cxb5 {[%emt 0:01:47]} cxb5 {[%emt 0:00:15]} 16. Qc6 {[%emt 0:03:06]} Qb6 {[%emt 0:03:35]} 17. Rac1 {[%emt 0:02:56]} Qxc6 {[%emt 0:07:52]} 18. Rxc6 {[%emt 0:00:06]} Nf8 {[%emt 0:00:17]} 19. Ne5 {[%emt 0:00:34]} N6d7 {[%emt 0:02:04]} 20. Nf3 {[%emt 0:00:55]} Nf6 {[%emt 0:01:03]} 21. Rfc1 {[%emt 0:00:47]} Bd7 {[%emt 0:00:34]} 22. Rb6 {[%emt 0:00:17]} Rec8 {[%emt 0:00:33]} 23. Rc5 {[%emt 0:00:41]} Rxc5 {[%emt 0:04:20]} 24. dxc5 {[%emt 0:00:07]} Bc8 {[%emt 0:00:41]} 25. c6 {[%emt 0:00:31]} Ne8 {[%emt 0:02:59]} 26. e4 {[%emt 0:02:04]} dxe4 {[%emt 0:02:17]} 27. Bxe4 {[%emt 0:00:17]} Nf6 {[%emt 0:00:13]} 28. Nd2 {[%emt 0:00:41]} Nd5 {[%emt 0:04:07]} 29. Bxd5 {[%emt 0:00:19]} exd5 {[%emt 0:00:01]} 30. Nf3 {[%emt 0:01:04]} f6 {[%emt 0:15:48]} 31. Bd6 {[%emt 0:01:09]} Kf7 {[%emt 0:00:22]} 32. Nd4 {[%emt 0:02:25]} Ke8 {[%emt 0:06:15]} 33. Rb7 {[%emt 0:02:43]} Ne6 {[%emt 0:04:04]} 34. Re7+ {[%emt 0:00:33]} Kd8 {[%emt 0:00:26]} 1-0

[Event "Riga Chess Open 2020"]
[Site "Riga"]
[Date "2020.08.27"]
[Round "5.4"]
[White "Alipovs, Anatolijs"]
[Black "Tokranovs, Dmitrijs"]
[Result "0-1"]
[ECO "D31"]
[WhiteElo "1789"]
[BlackElo "2212"]
[Annotator "ChessBase"]
[PlyCount "104"]
[EventDate "2020.08.29"]
[EventType "swiss"]
[EventCountry "LAT"]
[SourceTitle "playchess.com"]
[Source "ChessBase"]
[SourceQuality "1"]
[TimeControl "5400+30"]

1. d4 {[%emt 0:00:00]} d5 {[%emt 0:18:44]} 2. c4 {[%emt 0:01:10]} c6 {[%emt 0:00:03]} 3. Nc3 {[%emt 0:01:00]} e6 {[%emt 0:00:04]} 4. Nf3 {[%emt 0:00:45]} dxc4 {[%emt 0:00:05]} 5. a4 {[%emt 0:00:56]} Bb4 {[%emt 0:00:04]} 6. e3 {[%emt 0:06:35]} b5 {[%emt 0:00:05]} 7. Bd2 {[%emt 0:01:59]} a5 {[%emt 0:00:19]} 8. Ne5 {[%emt 0:04:50]} Bb7 {[%emt 0:05:51]} 9. Qg4 {[%emt 0:05:38]} Kf8 {[%emt 0:07:52]} 10. h4 {[%emt 0:07:41]} Nf6 {[%emt 0:01:06]} 11. Qf4 {[%emt 0:03:51]} Qe8 {[%emt 0:06:20]} 12. h5 {[%emt 0:05:37]} h6 {[%emt 0:02:51]} 13. Be2 {[%emt 0:01:17]} Nbd7 {[%emt 0:13:38]} 14. Bf3 {[%emt 0:04:22]} Nxe5 {[%emt 0:04:16]} 15. dxe5 {[%emt 0:06:04]} Nd5 {[%emt 0:01:50]} 16. Qg3 {[%emt 0:09:55]} Bc5 {[%emt 0:03:42]} 17. Ne4 {[%emt 0:03:39]} Qe7 {[%emt 0:02:58]} 18. O-O {[%emt 0:06:18]} b4 {[%emt 0:03:46]} 19. Rfc1 {[%emt 0:02:52]} Ba6 {[%emt 0:00:11]} 20. Qg4 {[%emt 0:01:01]} Rd8 {[%emt 0:03:27]} 21. Be2 {[%emt 0:04:26]} Nb6 {[%emt 0:06:59]} 22. Be1 {[%emt 0:00:43]} Rd5 {[%emt 0:00:18]} 23. Nd2 {[%emt 0:08:30]} Rxe5 {[%emt 0:02:17]} 24. Bxc4 {[%emt 0:04:45]} Bb7 {[%emt 0:02:43]} 25. Nf3 {[%emt 0:02:03]} Nxc4 {[%emt 0:00:26]} 26. Rxc4 {[%emt 0:00:27]} Rd5 {[%emt 0:00:18]} 27. Rac1 {[%emt 0:00:31]} Bb6 {[%emt 0:07:16]} 28. e4 {[%emt 0:01:23]} Rd8 {[%emt 0:01:34]} 29. Bd2 {[%emt 0:01:07]} e5 {[%emt 0:02:31]} 30. b3 {[%emt 0:01:11]} Rd3 {[%emt 0:00:34]} 31. Qf5 {[%emt 0:01:59]} Qf6 {[%emt 0:00:46]} 32. Qxf6 {[%emt 0:01:21]} gxf6 {[%emt 0:00:04]} 33. Rb1 {[%emt 0:00:17]} Ke7 {[%emt 0:00:29]} 34. Rc2 {[%emt 0:01:42]} c5 {[%emt 0:00:16]} 35. Ne1 {[%emt 0:00:31]} Bxe4 {[%emt 0:00:12]} 36. Nxd3 {[%emt 0:00:40]} Bxd3 {[%emt 0:00:03]} 37. Rbc1 {[%emt 0:00:19]} Bxc2 {[%emt 0:00:11]} 38. Rxc2 {[%emt 0:00:04]} f5 {[%emt 0:00:26]} 39. Be3 {[%emt 0:00:21]} Ke6 {[%emt 0:00:14]} 40. Rc1 {[%emt 0:00:25]} Kd5 {[%emt 0:01:23]} 41. Rd1+ {[%emt 0:00:31]} Kc6 {[%emt 0:00:02]} 42. g3 {[%emt 0:00:23]} c4 {[%emt 0:01:42]} 43. Bxb6 {[%emt 0:00:38]} Kxb6 {[%emt 0:00:04]} 44. bxc4 {[%emt 0:00:43]} Kc5 {[%emt 0:00:02]} 45. Rd5+ {[%emt 0:00:23]} Kxc4 {[%emt 0:00:04]} 46. Rxe5 {[%emt 0:00:29]} b3 {[%emt 0:00:04]} 47. Rb5 {[%emt 0:00:52]} Kc3 {[%emt 0:00:07]} 48. Kg2 {[%emt 0:00:28]} b2 {[%emt 0:00:03]} 49. Kf3 {[%emt 0:00:20]} Kc2 {[%emt 0:00:04]} 50. Rc5+ {[%emt 0:00:19]} Kb3 {[%emt 0:00:04]} 51. Rxa5 {[%emt 0:01:13]} Rb8 {[%emt 0:00:18]} 52. Rxf5 {[%emt 0:00:37]} b1=Q {[%emt 0:00:05]} 0-1

[Event "Riga Chess Open 2020"]
[Site "Riga"]
[Date "2020.08.28"]
[Round "6.1"]
[White "Krivonosov, Oleg"]
[Black "Melderis, Uldis"]
[Result "1-0"]
[ECO "A30"]
[WhiteElo "2381"]
[BlackElo "1889"]
[Annotator "ChessBase"]
[PlyCount "149"]
[EventDate "2020.08.29"]
[EventType "swiss"]
[EventCountry "LAT"]
[SourceTitle "playchess.com"]
[Source "ChessBase"]
[SourceQuality "1"]
[TimeControl "5400+30"]

1. Nf3 {[%emt 0:00:00]} Nf6 {[%emt 0:00:00]} 2. c4 {[%emt 0:00:00]} b6 {[%emt 0:00:00]} 3. g3 {[%emt 0:00:00]} Bb7 {[%emt 0:00:01]} 4. Bg2 {[%emt 0:00:01]} e6 {[%emt 0:00:19]} 5. O-O {[%emt 0:00:11]} c5 {[%emt 0:00:12]} 6. Nc3 {[%emt 0:00:28]} Be7 {[%emt 0:00:06]} 7. d4 {[%emt 0:00:06]} cxd4 {[%emt 0:00:16]} 8. Qxd4 {[%emt 0:00:09]} O-O {[%emt 0:00:19]} 9. Rd1 {[%emt 0:00:38]} Nc6 {[%emt 0:01:16]} 10. Qf4 {[%emt 0:00:30]} Qb8 {[%emt 0:02:58]} 11. Qxb8 {[%emt 0:02:04]} Raxb8 {[%emt 0:00:18]} 12. Bf4 {[%emt 0:00:06]} Rbd8 {[%emt 0:01:00]} 13. Nd4 {[%emt 0:09:18]} Na5 {[%emt 0:03:32]} 14. Bxb7 {[%emt 0:01:13]} Nxb7 {[%emt 0:00:04]} 15. Ndb5 {[%emt 0:02:04]} Na5 {[%emt 0:03:07]} 16. Bd6 {[%emt 0:04:07]} Bxd6 {[%emt 0:04:30]} 17. Nxd6 {[%emt 0:00:13]} Ne8 {[%emt 0:01:26]} 18. Nce4 {[%emt 0:05:24]} f5 {[%emt 0:04:49]} 19. Nxe8 {[%emt 0:00:13]} Rfxe8 {[%emt 0:00:18]} 20. Nd6 {[%emt 0:00:33]} Re7 {[%emt 0:00:43]} 21. Rd3 {[%emt 0:03:06]} Rb8 {[%emt 0:02:30]} 22. Rad1 {[%emt 0:06:46]} Nc6 {[%emt 0:01:33]} 23. f4 {[%emt 0:01:23]} Kf8 {[%emt 0:00:55]} 24. a3 {[%emt 0:01:47]} Nd8 {[%emt 0:01:44]} 25. b4 {[%emt 0:00:48]} a6 {[%emt 0:00:40]} 26. e4 {[%emt 0:01:43]} g6 {[%emt 0:00:38]} 27. Kf2 {[%emt 0:03:24]} Kg7 {[%emt 0:03:39]} 28. Kf3 {[%emt 0:01:56]} Kf8 {[%emt 0:00:19]} 29. h3 {[%emt 0:00:49]} Nb7 {[%emt 0:00:39]} 30. g4 {[%emt 0:01:01]} Nxd6 {[%emt 0:01:15]} 31. Rxd6 {[%emt 0:00:08]} fxe4+ {[%emt 0:00:36]} 32. Kxe4 {[%emt 0:00:18]} Ke8 {[%emt 0:00:09]} 33. Rc1 {[%emt 0:00:56]} Rf7 {[%emt 0:01:52]} 34. c5 {[%emt 0:00:43]} bxc5 {[%emt 0:00:35]} 35. Rxc5 {[%emt 0:01:36]} Ke7 {[%emt 0:00:33]} 36. Rd2 {[%emt 0:03:31]} Rbf8 {[%emt 0:05:23]} 37. Rf2 {[%emt 0:00:09]} Rb8 {[%emt 0:00:15]} 38. Rf3 {[%emt 0:00:57]} Rf6 {[%emt 0:01:21]} 39. h4 {[%emt 0:01:31]} Rf7 {[%emt 0:01:17]} 40. h5 {[%emt 0:02:25]} gxh5 {[%emt 0:04:38]} 41. Rxh5 {[%emt 0:00:17]} Rc8 {[%emt 0:00:42]} 42. Rc5 {[%emt 0:00:25]} Rg8 {[%emt 0:00:50]} 43. Rg3 {[%emt 0:04:21]} Rgf8 {[%emt 0:02:33]} 44. f5 {[%emt 0:01:46]} Rg8 {[%emt 0:00:43]} 45. fxe6 {[%emt 0:01:09]} Kxe6 {[%emt 0:01:32]} 46. Re5+ {[%emt 0:02:48]} Kd6 {[%emt 0:00:16]} 47. Ra5 {[%emt 0:00:41]} Re8+ {[%emt 0:24:50]} 48. Kd3 {[%emt 0:00:57]} Ra8 {[%emt 0:00:42]} 49. Rh3 {[%emt 0:03:28]} Kc7 {[%emt 0:02:36]} 50. Kc3 {[%emt 0:00:43]} Kb7 {[%emt 0:00:34]} 51. Kb3 {[%emt 0:00:40]} Rg7 {[%emt 0:01:08]} 52. g5 {[%emt 0:01:12]} Rc8 {[%emt 0:01:18]} 53. Rd5 {[%emt 0:01:10]} Rc6 {[%emt 0:00:47]} 54. Ka4 {[%emt 0:01:38]} Rcg6 {[%emt 0:00:48]} 55. Rh5 {[%emt 0:00:17]} Kc6 {[%emt 0:04:05]} 56. Rc5+ {[%emt 0:00:13]} Kb6 {[%emt 0:01:00]} 57. Rf5 {[%emt 0:00:20]} Kc7 {[%emt 0:01:25]} 58. Rf6 {[%emt 0:03:08]} Rxf6 {[%emt 0:02:02]} 59. gxf6 {[%emt 0:00:16]} Rf7 {[%emt 0:00:12]} 60. Rh6 {[%emt 0:01:42]} Kb6 {[%emt 0:00:48]} 61. Kb3 {[%emt 0:00:17]} Kc6 {[%emt 0:00:55]} 62. Kc4 {[%emt 0:00:55]} Kd6 {[%emt 0:00:55]} 63. Kd4 {[%emt 0:01:47]} Kc6 {[%emt 0:00:30]} 64. a4 {[%emt 0:00:27]} Kd6 {[%emt 0:02:35]} 65. a5 {[%emt 0:01:21]} Kc6 {[%emt 0:00:48]} 66. Ke5 {[%emt 0:00:07]} Kb5 {[%emt 0:01:27]} 67. Rh4 {[%emt 0:00:21]} Ka4 {[%emt 0:01:12]} 68. Kf5 {[%emt 0:00:52]} Kb5 {[%emt 0:00:18]} 69. Re4 {[%emt 0:00:47]} Rf8 {[%emt 0:00:39]} 70. Rd4 {[%emt 0:00:30]} Rf7 {[%emt 0:00:25]} 71. Rd6 {[%emt 0:00:16]} Kxb4 {[%emt 0:00:24]} 72. Rxa6 {[%emt 0:00:05]} Kb5 {[%emt 0:00:18]} 73. Ra8 {[%emt 0:00:05]} Kc6 {[%emt 0:02:26]} 74. Re8 {[%emt 0:00:21]} d6 {[%emt 0:01:54]} 75. Ke6 {[%emt 0:00:19]} 1-0

[Event "Riga Chess Open 2020"]
[Site "Riga"]
[Date "2020.08.28"]
[Round "6.2"]
[White "Tokranovs, Dmitrijs"]
[Black "Katishonok, Nikolaj"]
[Result "1-0"]
[ECO "C54"]
[WhiteElo "2212"]
[BlackElo "2118"]
[Annotator "ChessBase"]
[PlyCount "101"]
[EventDate "2020.08.29"]
[EventType "swiss"]
[EventCountry "LAT"]
[SourceTitle "playchess.com"]
[Source "ChessBase"]
[SourceQuality "1"]
[TimeControl "5400+30"]

1. e4 {[%emt 0:00:00]} e5 {[%emt 0:00:00]} 2. Nf3 {[%emt 0:00:00]} Nc6 {[%emt 0:00:03]} 3. Bc4 {[%emt 0:00:00]} Bc5 {[%emt 0:00:31]} 4. c3 {[%emt 0:00:00]} Nf6 {[%emt 0:00:46]} 5. d4 {[%emt 0:00:00]} exd4 {[%emt 0:00:45]} 6. cxd4 {[%emt 0:00:00]} Bb4+ {[%emt 0:00:34]} 7. Bd2 {[%emt 0:00:00]} Nxe4 {[%emt 0:00:45]} 8. Bxb4 {[%emt 0:00:00]} Nxb4 {[%emt 0:00:06]} 9. Bxf7+ {[%emt 0:00:11]} Kxf7 {[%emt 0:00:10]} 10. Qb3+ {[%emt 0:00:04]} Kf8 {[%emt 0:00:21]} 11. Qxb4+ {[%emt 0:00:11]} Qe7 {[%emt 0:00:08]} 12. Qxe7+ {[%emt 0:00:06]} Kxe7 {[%emt 0:00:05]} 13. O-O {[%emt 0:00:08]} Kd8 {[%emt 0:00:06]} 14. Re1 {[%emt 0:00:26]} Nf6 {[%emt 0:00:06]} 15. Nc3 {[%emt 0:00:15]} d6 {[%emt 0:00:35]} 16. d5 {[%emt 0:00:28]} Bd7 {[%emt 0:02:40]} 17. Ng5 {[%emt 0:06:06]} Re8 {[%emt 0:04:12]} 18. f3 {[%emt 0:00:51]} a5 {[%emt 0:00:25]} 19. Kf2 {[%emt 0:01:11]} a4 {[%emt 0:00:07]} 20. a3 {[%emt 0:01:13]} Ra5 {[%emt 0:00:11]} 21. Rxe8+ {[%emt 0:05:22]} Kxe8 {[%emt 0:00:29]} 22. Rd1 {[%emt 0:00:48]} h6 {[%emt 0:02:21]} 23. Nge4 {[%emt 0:00:31]} Nxe4+ {[%emt 0:00:18]} 24. fxe4 {[%emt 0:00:41]} Ra6 {[%emt 0:03:04]} 25. Ke3 {[%emt 0:04:30]} Ke7 {[%emt 0:01:10]} 26. Rd2 {[%emt 0:00:46]} Rb6 {[%emt 0:04:33]} 27. Kd3 {[%emt 0:06:26]} Ra6 {[%emt 0:02:20]} 28. Kd4 {[%emt 0:03:16]} c5+ {[%emt 0:12:17]} 29. dxc6 {[%emt 0:06:26]} Bxc6 {[%emt 0:04:17]} 30. Na2 {[%emt 0:02:32]} Ra5 {[%emt 0:01:29]} 31. Nc3 {[%emt 0:07:53]} Rh5 {[%emt 0:01:48]} 32. g3 {[%emt 0:00:19]} Rg5 {[%emt 0:04:14]} 33. Ke3 {[%emt 0:05:51]} Rc5 {[%emt 0:05:58]} 34. Rd4 {[%emt 0:02:55]} Rh5 {[%emt 0:02:38]} 35. h4 {[%emt 0:01:09]} Rc5 {[%emt 0:03:17]} 36. Nxa4 {[%emt 0:11:20]} Rc2 {[%emt 0:00:07]} 37. b3 {[%emt 0:10:53]} Ra2 {[%emt 0:04:24]} 38. Nb6 {[%emt 0:00:35]} Rxa3 {[%emt 0:00:03]} 39. Rd3 {[%emt 0:04:41]} Bb5 {[%emt 0:05:36]} 40. Nd5+ {[%emt 0:00:55]} Kd7 {[%emt 0:01:26]} 41. Rc3 {[%emt 0:00:01]} Bc6 {[%emt 0:00:35]} 42. Kf4 {[%emt 0:05:31]} Ke6 {[%emt 0:01:38]} 43. Nb4 {[%emt 0:00:39]} Bd7 {[%emt 0:02:18]} 44. Nc2 {[%emt 0:00:16]} Ra2 {[%emt 0:10:57]} 45. Rc7 {[%emt 0:00:27]} b6 {[%emt 0:02:29]} 46. Nd4+ {[%emt 0:00:50]} Ke7 {[%emt 0:00:02]} 47. Rb7 {[%emt 0:01:06]} Ra6 {[%emt 0:06:54]} 48. Nc6+ {[%emt 0:00:24]} Ke6 {[%emt 0:02:48]} 49. Rxd7 {[%emt 0:00:06]} g5+ {[%emt 0:00:14]} 50. hxg5 {[%emt 0:00:09]} hxg5+ {[%emt 0:00:04]} 51. Kxg5 {[%emt 0:00:21]} 1-0